Cogmind - Beta 13 @@@ ROGUE MODE // 2024.03.05 @ 06:37:37 Player: 3.14 Result: Destroyed by YK-9SU(R) with Subdweller Machine Gun Performance ------------- Evolutions (0) 0 Regions Visited (3) 600 Robots Destroyed (31) 155 Value Destroyed (677) 677 Prototype IDs (1) 20 Alien Tech Used (0) 0 Bonus (-110) -110 TOTAL SCORE: 1342 Bonus ------- Follower Combat Kills 25 Friendly Fire -135 Cogmind --------- Core Integrity 0/250 Matter 277/300 Energy 315/315 System Corruption 1% Temperature Cool (0) Movement Rolling (120) Ox1 Location -10/Subcaves Parts ------- > --- POWER (1) -------- Neutrino Core > --- PROPULSION (2) --- Subdweller Monowheel Subdweller Monowheel > --- UTILITY (2) ------ Scrap Shield > --- WEAPON (2) ------- Subdweller Beam Cannon Subdweller Machine Gun > --- INVENTORY (5) ---- Experimental Sensor Array Scrap Shield Fragment (49) Scrap Shield Fragment (46) Scrap Shield Fragment (45) Peak State ------------ > --- POWER ------------ Neutrino Core > --- PROPULSION ------- Subdweller Monowheel Subdweller Monowheel > --- UTILITY ---------- Scrap Shield > --- WEAPON ----------- Subdweller Beam Cannon Subdweller Machine Gun > --- INVENTORY -------- Experimental Sensor Array Scrap Shield Fragment Scrap Shield Fragment Scrap Shield Fragment Scrap Shield Fragment [Rating: 19] Favorites ----------- Power Ion Engine Engine Ion Engine Power Core Neutrino Core Propulsion Light Treads Treads Light Treads Leg Aluminum Leg Wheel Subdweller Monowheel Utility Small Storage Unit Device Improved Terrain Scanner Storage Small Storage Unit Protection Light Armor Plating Weapon Light Assault Rifle Energy Gun EM Pulse Gun Energy Cannon Subdweller Beam Cannon Ballistic Gun Light Assault Rifle Build | -11 -10 -10 -10 ------- Run | Yrd Mat Min Sub Slots Evolved . | . . . . Power . | . . . . Propulsion . | . . . . Utility . | . . . . Weapon . | . . . . Parts Attached 36 | . 10 8 18 Power 8 | . 3 2 3 Engine 7 | . 3 2 2 Core 1 | . . . 1 Reactor . | . . . . Propulsion 6 | . 2 . 4 Treads 4 | . 2 . 2 Leg . | . . . . Wheel 2 | . . . 2 Hover . | . . . . Flight . | . . . . Utility 11 | . 1 3 7 Device 4 | . . 2 2 Storage . | . . . . Processor . | . . . . Hackware . | . . . . Protection 7 | . 1 1 5 Artifact . | . . . . Weapon 11 | . 4 3 4 Energy Gun 1 | . 1 . . Energy Cannon 1 | . . . 1 Ballistic Gun 9 | . 3 3 3 Ballistic Cannon . | . . . . Launcher . | . . . . Special Weapon . | . . . . Impact Weapon . | . . . . Slashing Weapon . | . . . . Piercing Weapon . | . . . . Special Melee Weapon . | . . . . Unidentified Prototypes 1 | . . . 1 Parts Lost 5 | . 1 1 3 Power 3 | . 1 1 1 Propulsion 1 | . . . 1 Utility . | . . . . Weapon 1 | . . . 1 Highest Loss Streak 3 | . 1 1 3 To Critical Strikes 1 | . . . 1 Average Slot Usage (%) 91 | . 88 99 82 Engine 11 | . 13 13 7 Core 1 | . . . 5 Treads 16 | . 5 28 10 Leg 7 | . 22 . . Wheel 4 | . . . 16 Device 1 | . . 3 . Storage 10 | . 14 14 . Protection 9 | . 3 10 13 Energy Gun 1 | . 4 . . Energy Cannon 1 | . . . 7 Ballistic Gun 24 | . 22 28 20 Naked Turns . | . . . . Heaviest Build 44 | 13 15 15 44 Greatest Support 40 | 20 40 40 40 Greatest Overweight (x) 1 | . . . 1 Average Overweight (x) . | . . . . Largest Inventory Capacity 8 | . 8 8 8 Average Capacity 7 | . 8 8 5 Most Carried 8 | . 8 8 8 Average Carried 6 | . 7 7 4 Final Capacity 8 | 8 8 8 5 Final Carried 8 | 6 8 8 4 Class Distribution -------------------- 83% | Mutant 16% | Subdweller-Mutant Dominant Class ---------------- Mutant | -10/Materials Mutant | -10/Mines Subdweller-Mutant | -10/Subcaves Resources | -11 -10 -10 -10 ----------- Run | Yrd Mat Min Sub Matter Collected 758 | 200 212 147 199 Remotely . | . . . . Salvage Created 1087 | . 710 190 187 Parts 60 | . 39 11 10 Haulers Intercepted 1 | . 1 . . Recyclers Shooed 1 | . 1 . . Parts Field Recycled . | . . . . Retrieved Matter . | . . . . Parts Self-Destructed 3 | . . . 3 Prevented . | . . . . Kills | -11 -10 -10 -10 ------- Run | Yrd Mat Min Sub Combat Hostiles Destroyed 23 | . 15 5 3 Guns 21 | . 14 5 2 Classes Destroyed 8 | . 5 1 2 Worker 2 | . 2 . . Tunneler 2 | . . 2 . Hauler 1 | . 1 . . Recycler 2 | . 2 . . Swarmer 8 | . 6 2 . Grunt 12 | . 9 3 . Subdweller 3 | . . . 3 Guerrilla 1 | . . . 1 Best Kill Streak 3 | . 3 2 2 Combat Bots Only 3 | . 3 2 2 Max Kills in Single Turn 2 | . 1 2 1 Gunslinging 1 | . . 1 . Exploded . | . . . . Melee . | . . . . Uniques/NPCs Destroyed . | . . . . Combat | -11 -10 -10 -10 -------- Run | Yrd Mat Min Sub Hostile Shots Fired 184 | . 88 43 53 Missed 49 | . 29 9 11 Damage Taken 2127 | . 600 420 1107 Core 271 | . 78 46 147 Absorbed by Shields . | . . . . Regen/Repaired (Parts) 62 | . 62 . . Core Remaining (%) 100 | 100 . . . Volleys Fired 136 | . 71 27 38 Largest 2 | . 2 2 2 Hottest 110 | . 60 40 110 Shots Fired 259 | . 142 55 62 Gun 238 | . 142 55 41 Cannon 21 | . . . 21 Launcher . | . . . . Special . | . . . . Kinetic 213 | . 117 55 41 Thermal 21 | . . . 21 Explosive . | . . . . Electromagnetic 25 | . 25 . . Robot Hit Streak 12 | . 9 12 10 Robot Miss Streak 5 | . 5 4 4 Penetration Max . | . . . . Secondary Targets 1 | . . 1 . Max Gunslinging Chain 1 | . . 1 . Shots Hit Robots 155 | . 79 40 36 Core Hits 53 | . 34 12 7 Critical Kills 3 | . 1 . 2 Critical Parts Destroyed 1 | . 1 . . Critical Strikes 4 | . 2 . 2 Meltdown 1 | . . . 1 Destroy 3 | . 2 . 1 Melee Attacks . | . . . . Impact . | . . . . Slashing . | . . . . Piercing . | . . . . Sneak Attacks . | . . . . Combat Hostiles . | . . . . Follow-up Attacks . | . . . . Damage Inflicted 1611 | . 781 335 495 Guns 1338 | . 773 321 244 Cannons 251 | . . . 251 Explosions . | . . . . Melee . | . . . . Ramming 22 | . 8 14 . Kinetic 1083 | . 518 321 244 Thermal 251 | . . . 251 Explosive . | . . . . Electromagnetic 255 | . 255 . . Impact . | . . . . Slashing . | . . . . Piercing . | . . . . Highest Corruption 1 | . 1 1 1 Average Corruption 1 | . 1 1 1 Corruption Purged . | . . . . Corruption Blocked . | . . . . Effects 14 | . 1 10 3 Message Errors 5 | . 1 2 2 Matter Fused 4 | . . 3 1 Energy Discharges 3 | . . 3 . Data Loss (major) 1 | . . 1 . Misfires 1 | . . 1 . Overload Shots . | . . . . Overflow Damage . | . . . . Projectiles . | . . . . Explosions . | . . . . Melee . | . . . . Knockbacks . | . . . . Impact . | . . . . Kinetic . | . . . . Secondary . | . . . . Self-Inflicted Damage . | . . . . Shots . | . . . . Rammed 2 | . . 2 . Targets Rammed 5 | . 1 4 . Kicked 1 | . 1 . . Crushed 2 | . . 2 . Highest Temperature 184 | . 108 184 36 Average Temperature 36 | . 26 60 20 Received Heat Transfer 606 | . 237 219 150 Siege Activations . | . . . . Robots Corrupted 1 | . 1 . . Combat Hostiles 1 | . 1 . . Parts Fried 2 | . 2 . . Impact Corruptions . | . . . . Robots Melted 1 | . . . 1 Combat Hostiles 1 | . . . 1 Parts Melted . | . . . . Heat Transferred 333 | . . . 333 Parts Sabotaged . | . . . . Parts Stolen . | . . . . Parts Stripped . | . . . . Power Chain Reactions . | . . . . Alert | -11 -10 -10 -10 ------- Run | Yrd Mat Min Sub Peak Influence 354 | . 354 254 . Initial 138 | . . 138 . Average 143 | . 182 113 . Maximum Alert Level 1 | . 1 1 . Low Security (%) 74 | . 42 97 . Level 1 25 | . 57 2 . Level 2 . | . . . . Level 3 . | . . . . Level 4 . | . . . . Level 5 . | . . . . High Security . | . . . . Max Security . | . . . . Squads Dispatched 3 | . 3 . . Investigation . | . . . . Extermination . | . . . . Reinforcement 3 | . 3 . . Assault . | . . . . Garrison . | . . . . Intercept . | . . . . Searches Triggered . | . . . . Construction Impeded . | . . . . Haulers Reinforced . | . . . . Active Scanning Responses . | . . . . Cargo Convoy Interrupts . | . . . . Stealth | -11 -10 -10 -10 --------- Run | Yrd Mat Min Sub Distress Signals 1 | . 1 . . Communications Jammed . | . . . . Distress Signals . | . . . . Times Spotted 48 | . 25 7 16 Peak Tracking Total 9 | . 5 3 9 Tactical Retreats 3 | . 2 1 . Traps | -11 -10 -10 -10 ------- Run | Yrd Mat Min Sub Traps Triggered 4 | . 1 . 3 Indirectly . | . . . . Trap Hack Attempts . | . . . . Triggered . | . . . . Disarmed . | . . . . Reprogrammed . | . . . . Reused . | . . . . Traps Extracted . | . . . . Installed . | . . . . Triggered 2 | . 2 . . Machines | -11 -10 -10 -10 ---------- Run | Yrd Mat Min Sub Machines Disabled . | . . . . Max in Single Turn . | . . . . Machines Repaired . | . . . . Machines Dismantled . | . . . . Machines Sabotaged . | . . . . Overloaded Fab Kills . | . . . . Hacking | -11 -10 -10 -10 --------- Run | Yrd Mat Min Sub Machines Accessed 4 | . 3 1 . Terminals 3 | . 2 1 . Fabricators . | . . . . Repair Stations 1 | . 1 . . Recycling Units . | . . . . Scanalyzers . | . . . . Garrison Access . | . . . . Total Hacks 9 | . 7 2 . Successful 4 | . 4 . . Failed 5 | . 3 2 . Catastrophic . | . . . . Database Lockouts . | . . . . Manual 4 | . 2 2 . Terminals 7 | . 5 2 . Fabricators . | . . . . Repair Stations 2 | . 2 . . Recycling Units . | . . . . Scanalyzers . | . . . . Garrison Access . | . . . . Terminal Hacks 1 | . 1 . . Branch Access Points 1 | . 1 . . Fabricator Hacks . | . . . . Repair Station Hacks 2 | . 2 . . Scan Component 1 | . 1 . . Repair 1 | . 1 . . Recycling Unit Hacks . | . . . . Scanalyzer . | . . . . Garrison Access Hacks . | . . . . Unauthorized Hacks 1 | . 1 . . Terminals 1 | . 1 . . Botnet 1 | . 1 . . Fabricators . | . . . . Repair Stations . | . . . . Recycling Units . | . . . . Scanalyzers . | . . . . Garrison Access . | . . . . Data Cores Recovered . | . . . . Used . | . . . . Hacking Detections 4 | . 3 1 . Full Trace Events 1 | . 1 . . Feedback Events . | . . . . Feedback Blocked . | . . . . Robot Schematics Acquired . | . . . . Robots Built . | . . . . Authchips . | . . . . Time . | . . . . Total Robot Build Rating . | . . . . Part Schematics Acquired . | . . . . Parts Built . | . . . . Authchips . | . . . . Time . | . . . . Total Part Build Rating . | . . . . Parts Repaired 1 | . 1 . . Time 26 | . 26 . . Parts Recycled . | . . . . Recycled Matter . | . . . . Retrieved Matter . | . . . . Retrieved Components . | . . . . Parts Scanalyzed . | . . . . Part Schematics Acquired . | . . . . Parts Damaged . | . . . . Bothacking | -11 -10 -10 -10 ------------ Run | Yrd Mat Min Sub Used RIF Installer . | . . . . Robots Hacked . | . . . . Non-combat . | . . . . Combat . | . . . . Robot Hacks Applied . | . . . . Relay Couplers Released . | . . . . Fabnet Peak Effective % . | . . . . Robots Rewired . | . . . . Allies Hacked . | . . . . Hacks Repelled . | . . . . Allies | -11 -10 -10 -10 -------- Run | Yrd Mat Min Sub Total Allies 2 | . . 2 . Largest Group 2 | . . 2 . Highest-Rated Group 42 | . . 42 . Highest-Rated Ally 31 | . . 31 . Total Orders . | . . . . Ally Attacks 11 | . . 11 . Total Damage 208 | . . 208 . Kills 1 | . . 1 . Allies Corrupted . | . . . . Allies Melted . | . . . . Intel | -11 -10 -10 -10 ------- Run | Yrd Mat Min Sub Robot Analysis Total . | . . . . Derelict Logs Recovered 2 | . . 1 1 Drone Launches . | . . . . Drone Recoveries . | . . . . Exploration | -11 -10 -10 -10 ------------- Run | Yrd Mat Min Sub Turns Passed 1841 | . 594 785 462 Spaces Moved 931 | 1 272 419 239 Core . | . . . . Treads 526 | . 33 419 74 Legs 240 | 1 239 . . Wheels 165 | . . . 165 Hover . | . . . . Flight . | . . . . Fastest Speed 110 | 120 120 160 110 Average Speed 141 | 120 124 160 129 Slowest Speed 160 | 120 160 160 160 Overloaded Moves . | . . . . Propulsion Burnouts . | . . . . Robots Hopped . | . . . . Cave-ins Triggered . | . . . . Exploration Rate (%) 41 | 2 55 88 21 Regions Visited 3 Branch Regions 2 Pre-discovered Areas . | . . . . Known Exits Taken 1 | . 1 . . Unknown Exits Taken 2 | 1 . 1 . Scrap Searched 1 | . . 1 . Spaces Dug . | . . . . Terrain Destroyed 4 | . . . 4 Melee . | . . . . Projectile 4 | . . . 4 AOE . | . . . . Terrain Rammed . | . . . . Walls Destroyed . | . . . . Machines Disabled . | . . . . Actions | -11 -10 -10 -10 --------- Run | Yrd Mat Min Sub Total 1238 | . 410 489 339 Wait 75 | . 41 25 9 Move 928 | . 271 418 239 Hop . | . . . . Pick Up 16 | . 8 1 7 Fast Attach 13 | . 3 2 8 Attach 11 | . 3 1 7 Detach 2 | . . 1 1 Swap 12 | . 4 5 3 Drop 32 | . 8 5 19 Fire 136 | . 71 27 38 Melee . | . . . . Ram . | . . . . Kick 1 | . 1 . . Crush 4 | . . 4 . Escape Stasis . | . . . . Rewire . | . . . . Trap . | . . . . Miscellaneous 8 | . . . 8 Route ------- -11/Scrapyard -10/Materials (discovered 2 exits: *Mat / *Min) -10/Mines (discovered 3 exits: *Mat x2 / [*Sub]) -10/Subcaves History --------- Turn | Location | Event 1 | -11/Scrapyard | Discovered new exit (range 0) 1 | -11/Scrapyard | Entered Materials 72 | -10/Materials | Discovered new exit (range 10) 268 | -10/Materials | Discovered new exit (range 5) 309 | -10/Materials | Build established: Mutant 374 | -10/Materials | Repaired Lgt. Assault Rifle 390 | -10/Materials | Identified exit to Mines 595 | -10/Materials | Entered Mines 935 | -10/Mines | Found a damaged Exp. Sensor Array with a note attached 939 | -10/Mines | Found Prototype Device 1008 | -10/Mines | Identified exit to Materials 1198 | -10/Mines | Discovered exit to Materials (range 9) 1369 | -10/Mines | Discovered new exit (range 6) 1380 | -10/Mines | Entered Subcaves 1389 | -10/Subcaves | Identified Exp. Sensor Array 1515 | -10/Subcaves | Ambushed by swarm of Subdwellers 1515 | -10/Subcaves | Ambushed by Subdwellers from Twisted Machinery 1515 | -10/Subcaves | Ambushed by Subdwellers from Twisted Machinery 1528 | -10/Subcaves | Core integrity fell below 50% 1535 | -10/Subcaves | Core integrity fell below 20% 1578 | -10/Subcaves | Lost 3 parts (1p1n1w) 1692 | -10/Subcaves | A swath of the cavern ceiling suddenly collapsed 1711 | -10/Subcaves | Ambushed by Subdweller buried in earth 1788 | -10/Subcaves | Learned Materials terminal intel 1821 | -10/Subcaves | Build established: Subdweller-Mutant 1842 | -10/Subcaves | Destroyed by YK-9SU(R) with Subdweller Machine Gun Last Messages --------------- 01715_ OS-CBX(R) destroyed. 01718_ Scrap Shield Fragment affixed to Scrap Shield (+49). 01719_ Acquired 55 matter. 01722_ Acquired Scrap Shield Fragment. 01725_ Triggered Piercing Trap. 01725_ Spikes shoot up from the floor. 01725_ Critical hit (Impale). 01730_ NS-UG2(g) triggered Piercing Trap. 01730_ Spikes shoot up from the floor. 01730_ NS-UG2(g) suffers critical hit (Impale). 01730_ NS-UG2(g) destroyed. 01769_ K9WGZ W >XRSM=/WOL#U 01788_ Acquired derelict log, extracted data. Data stored: Materials terminal intel. 01818_ 9D-460(R) suffers critical hit (Meltdown). 01829_ System corrupted: Matter fused (-9). 01831_ YK-9SU(R) affixes Scrap Shield Fragment to Scrap Shield. 01832_ Dropped Scrap Shield Fragment. 01832_ Scrap Shield Fragment affixed to Scrap Shield (+47). 01839_ YK-9SU(R) affixes Scrap Shield Fragment to Scrap Shield. Map ----- +----------------------------------------------------+ | ?????????????????????????????????????????????????? | | ?????????????????????????????????????????????????? | | ?????????????????????????????????????????????????? | | ?????????????????????????????????????????????????? | | ?????????????????????????????????????????????????? | | ?????????????????????????????????????????????????? | | ?????????????????????????????????????????????????? | | ?????????????????????????????????????????????????? | | ?????????????????????????????????????????????????? | | ?????????????????????????????????????????????????? | | ?????????????????????????????????????????????????? | | ?????????????????????????????????????????????????? | | ?????????????????????????????????????????????????? | | ?????????????????????????????????????????????????? | | ?????????????????????????????????????????????????? | | ?????????????????????????????????????????????????? | | ?????????????????????????????????????????????????? | | ?????????????????????????????????????????????????? | | ?????????????????????????????????????????????????? | | ?????????????????????????????????????????????????? | | ?????????????????????????????????????????????????? | | ????????????????????#?######?#####???????????????? | | ????????????????##### # ### ##??????????????? | | ?????????? # # ; # # ##????????????## | | ?????????? R%! ######## #?#####?##### | | ??????????? """" =; @#??????# ### #? | | ?????????????#""" #####??????# #?? | | ??????????????####" ?????????????# ##?? | | ?????????????????#???????????????# ##??# # | | ?????????????????????????????????#### #### #? | | ????????????????????????????????????# ### #? | | ????????????????????????????????????## ## | | ?????????????????????????????????????# | | ?????????????????????????????????????### | | ???????????????????????????????????????##### | | ???????????????????????????????????????????#### | | ??????????????????????????????????????????????# | | ??????????????????????????????????????????????## | | ???????????????????????????????????????????????# | | ?????????????????????????????????????????????### | | ???????????????????????????????????????????### | | ?????????????????????????????????????????### | | ????????????????????????????????????????## | | ????????????????????????????????????????# | | ???????????????????????????????????????## | | ??????????????????????????????????????## ## | | ???????????????????????????????####??## ## | | ???????????????????????????????# #### ## ##### | | ???????????????????????????????# ## #??## | | ???????????????????????????????# ## ##???? | +----------------------------------------------------+ Best States ------------- Heat Dissipation 25 Energy Generation 19 Energy Capacity 315 Matter Stores 300 Matter Capacity 300 Sight Range 16 Robot Scan Range 20 Terrain Scan Range 16 Terrain Scan Density 10 Armor Coverage 800 Evasion (%) 55 Recoil Reduction 2 Item Schematics ----------------- None Robot Schematics ------------------ None Fabricated ------------ Nothing Alien Tech Used ----------------- None Achievements -------------- None Challenges ------------ None Game ------ Seed NodeAnalysisBroadsword Manual? 0 Play Time 00:15:47 Cumulative 867.0 hours Start 2024.03.05 @ 06:20:42 End 2024.03.05 @ 06:37:37 Sessions 2 Manual Loads 0 Difficulty Rogue Special Mode None Game No. 1314 Rogue 1314 Adventurer 0 Explorer 0 Win Type - Total 82 Types 48/1/14/14/4/0/0/1/0 Lore% 87 Gallery% 90 Achievement% 85 Wizard Run 0 Options --------- Layout 0 ASCII 1 Keyboard 0 Movement Numpad Keybinds 0 Fullscreen 1 Font 18/SmallcapsGlow Map View 76x50 Zoom Use 0% Tactical HUD 1 Map Filters NONE Filters NONE Steam 1 RUN: 197c713f-89c4-4523-92cf-68c435b16aa2